bitfinex/quotes_BTCUSD_20250526
["timestamp","ask_amount","ask_price","bid_price","bid_amount"]
[1748245274719,0.37523551,109920.0,109910.0,3.19109548]
[1748245274936,0.3843327,109920.0,109910.0,3.22748855]
[1748245275615,0.3843327,109920.0,109910.0,3.55839045]
[1748245275834,0.3843327,109920.0,109910.0,3.57658673]
[1748245277171,0.3843327,109920.0,109910.0,3.58568475]
[1748245277382,0.39343014,109920.0,109910.0,3.56748863]
[1748245277586,0.39343005,109920.0,109910.0,3.57658673]
[1748245278298,0.35168576,109920.0,109910.0,3.57658673]
[1748245278701,0.35140576,109920.0,109910.0,3.57658673]
[1748245279010,0.34230841,109920.0,109910.0,3.58568475]
[1748245279206,0.34230841,109920.0,109910.0,3.57658673]
[1748245279647,0.35140576,109920.0,109910.0,3.57658673]
[1748245280471,0.35140576,109920.0,109910.0,3.56748863]
[1748245281024,0.35140576,109920.0,109910.0,3.57658673]
[1748245281220,0.34026834,109920.0,109910.0,3.57658673]
[1748245281430,0.34026834,109920.0,109910.0,3.54929218]
[1748245281883,0.34936586,109920.0,109910.0,3.55839053]
[1748245282076,0.34026834,109920.0,109910.0,3.56748871]
[1748245282287,0.33117115,109920.0,109910.0,3.56748871]
[1748245282433,0.59357085,109920.0,109910.0,2.68093848]
[1748245282638,0.59357085,109920.0,109910.0,2.65183848]
[1748245283060,0.59357085,109920.0,109910.0,2.67943848]
[1748245286459,0.60204444,109920.0,109910.0,2.67943848]
[1748245287155,0.60204444,109920.0,109910.0,2.65183848]
[1748245287379,0.60204444,109920.0,109910.0,2.47777404]
[1748245288575,0.60204703,109920.0,109910.0,2.47777404]
[1748245291374,0.60204703,109920.0,109910.0,2.04763974]
[1748245291580,0.63074703,109920.0,109910.0,1.42415274]
[1748245291797,0.67298788,109920.0,109910.0,1.12077074]
[1748245294619,0.67298788,109920.0,109910.0,1.10743474]
[1748245295383,0.6645117,109920.0,109910.0,1.10743474]
[1748245296744,0.67299782,109920.0,109910.0,1.10743474]
[1748245296949,0.31271782,109920.0,109910.0,1.49709448]
[1748245297153,0.31271782,109920.0,109910.0,1.52789801]
[1748245297154,0.60205697,109920.0,109910.0,1.52789801]
[1748245297378,0.60205697,109920.0,109910.0,1.49709448]
[1748245297960,0.45665697,109920.0,109910.0,1.49709448]
[1748245298184,0.60205697,109920.0,109910.0,1.52429448]
[1748245299564,0.29817697,109920.0,109910.0,1.52429448]
[1748245299741,0.60205697,109920.0,109910.0,1.52429448]
[1748245299938,0.63271259,109920.0,109910.0,1.52429448]
[1748245302124,0.20671885,109920.0,109910.0,1.57888342]
[1748245302327,0.37031364,109920.0,109910.0,1.57888342]
[1748245302580,0.34752684,109930.0,109920.0,0.3960924]
[1748245302728,0.55467896,109940.0,109920.0,6.39229786]
[1748245302927,0.51817483,109940.0,109930.0,4.26492548]
[1748245303152,0.82205483,109940.0,109930.0,4.23763548]
[1748245303362,0.81295896,109940.0,109930.0,4.23763548]
[1748245304189,0.81304974,109940.0,109930.0,4.23763548]
[1748245304393,0.81304974,109940.0,109930.0,4.24673217]
[1748245304595,0.14979851,109940.0,109930.0,4.28311853]
[1748245304800,0.34081178,109940.0,109930.0,4.27402209]
[1748245305003,0.33271633,109940.0,109930.0,4.27402209]
[1748245305215,0.32362063,109940.0,109930.0,4.26492556]
[1748245305682,0.32362063,109940.0,109930.0,4.27402217]
[1748245306105,0.06193395,109950.0,109940.0,0.43158305]
[1748245306305,0.36962506,109950.0,109940.0,6.00893753]
[1748245306507,0.03837916,109950.0,109940.0,6.0180329]
[1748245306710,0.0474742,109950.0,109940.0,6.0180329]
[1748245306962,0.48576113,109960.0,109950.0,0.059]
[1748245307152,0.57530669,109960.0,109950.0,4.70426948]
[1748245307757,0.41686669,109960.0,109950.0,4.70426948]
[1748245307958,0.41686669,109960.0,109950.0,4.69123248]
[1748245308307,0.18196113,109960.0,109950.0,4.69123248]
[1748245308512,0.18196113,109960.0,109950.0,4.69223248]
[1748245308733,0.18196113,109960.0,109950.0,4.7011829]
[1748245309562,0.27482988,109970.0,109960.0,0.399]
[1748245309563,0.57834988,109970.0,109960.0,0.399]
[1748245309790,0.57834988,109970.0,109960.0,5.98544869]
[1748245309998,0.43298988,109970.0,109960.0,5.98544869]
[1748245310421,0.01818652,109970.0,109960.0,6.02332832]
[1748245310655,0.20005364,109970.0,109960.0,5.97433712]
[1748245310890,0.190961,109970.0,109960.0,5.98343108]
[1748245311146,0.19378812,109970.0,109960.0,6.01353108]
[1748245311376,0.19478812,109970.0,109960.0,6.04433461]
[1748245311605,0.17842914,109970.0,109960.0,6.06252313]
[1748245312282,0.16933592,109970.0,109960.0,5.98624869]
[1748245312953,0.16933592,109970.0,109960.0,6.06252304]
[1748245313161,0.16933592,109970.0,109960.0,6.05342908]
[1748245313500,0.16933592,109970.0,109960.0,6.06252321]
[1748245313730,0.16933592,109970.0,109960.0,5.99087138]
[1748245313932,0.16933592,109970.0,109960.0,5.99996559]
[1748245314804,0.17778968,109970.0,109960.0,5.99996559]
[1748245315184,0.17778968,109970.0,109960.0,5.21543838]
[1748245315392,0.17778968,109970.0,109960.0,4.96442638]
[1748245315712,0.17778968,109970.0,109960.0,4.99342638]
[1748245317647,0.17778968,109970.0,109960.0,4.45547438]
[1748245318927,0.17778968,109970.0,109960.0,3.42623838]
[1748245319133,0.32653524,109970.0,109960.0,1.4216619]
[1748245319336,0.26733524,109970.0,109960.0,1.78512164]
[1748245319535,0.26733524,109970.0,109960.0,2.17728138]
[1748245319760,0.26733524,109970.0,109960.0,1.81382164]
[1748245320196,0.26733524,109970.0,109960.0,1.84262164]
[1748245320598,0.26733524,109970.0,109960.0,1.81382164]
[1748245321241,0.30441581,109970.0,109960.0,1.4216619]
[1748245321488,0.41539889,109970.0,109960.0,1.0816619]
[1748245321752,0.25682517,109960.0,109940.0,0.36545974]
[1748245322024,0.75452214,109950.0,109940.0,0.002]
[1748245322254,0.7898763,109950.0,109940.0,0.002]
[1748245322481,1.24131131,109950.0,109940.0,0.002]
[1748245322702,0.2614131,109940.0,109930.0,0.34]
[1748245322902,0.26597133,109930.0,109920.0,0.36545974]
[1748245323112,0.50083689,109930.0,109920.0,1.40535252]
[1748245323327,0.50083689,109930.0,109920.0,1.22336252]
[1748245323539,0.50083689,109930.0,109920.0,0.88336252]
[1748245323743,0.50929065,109930.0,109920.0,1.06478052]
[1748245323956,0.50929065,109930.0,109920.0,0.96642095]
[1748245324169,0.47899065,109930.0,109920.0,0.96642095]
[1748245324375,0.5924698,109930.0,109920.0,0.97745192]
[1748245324961,0.5924698,109930.0,109920.0,0.95007159]
[1748245325168,0.5904698,109930.0,109920.0,0.95007159]
[1748245325398,0.2870298,109930.0,109920.0,0.95007159]
[1748245325569,0.5904698,109930.0,109920.0,0.95007159]
[1748245325996,0.5904698,109930.0,109920.0,0.95307159]
[1748245327833,0.5904698,109930.0,109920.0,0.93177643]
[1748245329077,0.5905098,109930.0,109920.0,0.93177643]
[1748245331939,0.5905098,109930.0,109920.0,1.2953576]
[1748245337031,0.66867546,109930.0,109920.0,0.93177643]
[1748245337230,0.6202498,109930.0,109920.0,0.93177643]
[1748245337432,0.6202498,109930.0,109920.0,1.2953576]
[1748245338520,0.5903498,109930.0,109920.0,1.2953576]
[1748245342964,0.6208498,109930.0,109920.0,1.2953576]
[1748245343835,0.6522498,109930.0,109920.0,1.2953576]
[1748245345343,0.6208498,109930.0,109920.0,1.2953576]
[1748245345995,0.63167919,109930.0,109920.0,1.29517492]
[1748245346873,0.60117919,109930.0,109920.0,1.29517492]
[1748245347586,0.29785919,109930.0,109920.0,1.29517492]
[1748245347809,0.60117919,109930.0,109920.0,1.32687492]
[1748245348038,0.60117919,109930.0,109920.0,1.29517492]
[1748245348255,0.6404395,109930.0,109920.0,1.29517492]
[1748245349096,0.6404395,109930.0,109920.0,1.27387906]
[1748245349297,0.64411863,109930.0,109920.0,1.27387906]
[1748245350011,0.67411863,109930.0,109920.0,1.27387906]
[1748245350211,0.67411863,109930.0,109920.0,1.26484809]
[1748245351106,0.6435134,109930.0,109920.0,1.26484809]
[1748245351554,0.6135134,109930.0,109920.0,1.26484809]
[1748245352330,0.6135134,109930.0,109920.0,1.29394809]
[1748245352583,0.3101934,109930.0,109920.0,1.29394809]
[1748245352767,0.6135134,109930.0,109920.0,1.29394809]
[1748245352990,0.6135134,109930.0,109920.0,1.28804317]
[1748245353371,0.59900488,109930.0,109920.0,1.28804317]
[1748245353608,0.62449355,109930.0,109920.0,1.25894317]
[1748245353986,0.32117355,109930.0,109920.0,1.25894317]
[1748245354187,0.62449355,109930.0,109920.0,1.28804317]
[1748245355868,0.63902282,109930.0,109920.0,1.28804317]
[1748245360547,0.63902282,109930.0,109920.0,1.25894317]
[1748245362631,0.63902282,109930.0,109920.0,1.28914317]
[1748245363700,0.6696939,109930.0,109920.0,1.28914317]
[1748245364404,0.6697339,109930.0,109920.0,1.28914317]
[1748245364990,0.5243739,109930.0,109920.0,1.28914317]
[1748245365154,0.5243739,109930.0,109920.0,1.28906686]
[1748245365155,0.6697339,109930.0,109920.0,1.28906686]
[1748245365399,0.5243739,109930.0,109920.0,1.28906686]
[1748245365572,0.6697339,109930.0,109920.0,1.28906686]
[1748245367971,0.6697339,109930.0,109920.0,1.25886686]
[1748245368143,0.6697339,109930.0,109920.0,1.25296207]
[1748245368868,0.71147819,109930.0,109920.0,1.25296207]
[1748245369069,0.69694892,109930.0,109920.0,1.25296207]
[1748245369277,0.69694892,109930.0,109920.0,1.28276207]
[1748245369714,0.69694892,109930.0,109920.0,1.26146673]
[1748245370696,0.30408336,109930.0,109920.0,2.06705656]
[1748245370918,0.19103048,109930.0,109920.0,2.17365382]
[1748245371124,0.19103048,109930.0,109920.0,2.18275117]
[1748245371332,0.19103048,109930.0,109920.0,2.28990763]
[1748245372281,0.18193395,109930.0,109920.0,2.21361656]
[1748245373381,0.18193395,109930.0,109920.0,1.85012673]
[1748245373608,0.18193395,109930.0,109920.0,1.81932673]
[1748245374066,0.18193395,109930.0,109920.0,1.85002673]
[1748245374439,0.18193395,109930.0,109920.0,1.81932673]
[1748245374620,0.18193395,109930.0,109920.0,1.84902673]
[1748245375122,0.18193395,109930.0,109920.0,1.61008866]
[1748245375328,0.18193395,109930.0,109920.0,1.95008866]
[1748245377816,0.18193395,109930.0,109920.0,1.95933185]
[1748245378675,0.18193395,109930.0,109920.0,1.61933185]
[1748245379681,0.18193395,109930.0,109920.0,1.96842929]
[1748245381083,0.18193395,109930.0,109920.0,2.33191912]
[1748245382311,0.18193395,109930.0,109920.0,2.36830922]
[1748245382467,0.18193395,109930.0,109920.0,2.37740657]
[1748245382672,0.19103064,109930.0,109920.0,2.38650384]
[1748245383046,0.19103064,109930.0,109920.0,2.36830922]
[1748245383259,0.19952646,109930.0,109920.0,2.32282168]
[1748245383459,0.19952646,109930.0,109920.0,2.3319192]
[1748245383660,0.19952646,109930.0,109920.0,1.96842937]
[1748245384315,0.19042977,109930.0,109920.0,1.95933185]
[1748245384473,0.19042977,109930.0,109920.0,1.93872937]
[1748245384880,0.30957533,109930.0,109920.0,1.41327185]
[1748245385265,0.30957533,109930.0,109920.0,1.75327185]
[1748245386829,0.33917533,109930.0,109920.0,1.75327185]
[1748245387688,0.48453533,109930.0,109920.0,1.34197185]
[1748245389178,0.48453533,109930.0,109920.0,1.29425885]
[1748245389646,0.48453533,109930.0,109920.0,1.21884285]
[1748245391425,0.48453533,109930.0,109920.0,1.21876662]
[1748245391848,0.51002666,109930.0,109920.0,1.21876662]
[1748245392565,0.54413171,109930.0,109920.0,1.21876662]
[1748245394649,0.53324378,109930.0,109920.0,1.21876662]
[1748245397231,0.55778463,109930.0,109920.0,0.49178696]
[1748245397430,0.55778463,109930.0,109920.0,0.85527679]
[1748245398506,0.5322933,109930.0,109920.0,0.50110983]
[1748245398670,0.53229516,109930.0,109920.0,0.50110983]
[1748245399188,0.52865279,109930.0,109920.0,0.50110983]
[1748245399787,0.52865279,109930.0,109920.0,0.5103245]
[1748245401503,0.56573085,109930.0,109920.0,0.48683467]
[1748245401704,0.52865279,109930.0,109920.0,0.8503245]
[1748245402337,0.52865279,109930.0,109920.0,0.7127045]
[1748245403427,0.51777792,109930.0,109920.0,0.7127045]
[1748245405107,0.37241792,109930.0,109920.0,0.7127045]
[1748245405283,0.37241792,109930.0,109920.0,2.52400433]
[1748245405505,0.67529792,109930.0,109920.0,2.49082733]
[1748245405669,0.6861684,109930.0,109920.0,2.49082733]
[1748245405875,0.6861684,109930.0,109920.0,1.71901533]
[1748245406074,0.6861684,109930.0,109920.0,1.63441733]
[1748245406393,0.6861684,109930.0,109920.0,1.57431733]
[1748245406572,0.6861684,109930.0,109920.0,1.23431733]
[1748245406774,0.6861684,109930.0,109920.0,1.07271733]
[1748245406985,0.71689476,109930.0,109920.0,1.02066433]
[1748245407194,0.80641627,109930.0,109920.0,0.3727045]
[1748245407615,0.70689476,109930.0,109920.0,0.87680433]
[1748245407782,0.70689476,109930.0,109920.0,0.85550654]
[1748245407982,0.71689476,109930.0,109920.0,0.85550654]
[1748245408483,0.74237205,109930.0,109920.0,0.85550654]
[1748245408906,0.74601881,109930.0,109920.0,0.85550654]
[1748245409544,0.74701881,109930.0,109920.0,0.85550654]
[1748245410567,0.74701881,109930.0,109920.0,0.86460653]
[1748245410706,0.74701881,109930.0,109920.0,0.51319982]
[1748245410903,0.53366032,109930.0,109920.0,0.37258982]
[1748245411129,0.83662032,109930.0,109920.0,0.37258982]
[1748245412064,0.83662032,109930.0,109920.0,0.71258982]
[1748245412431,0.74709881,109930.0,109920.0,0.71258982]
[1748245413139,0.73258157,109930.0,109920.0,0.71258982]
[1748245413519,0.73258157,109930.0,109920.0,0.37258982]
[1748245413723,0.78258157,109930.0,109920.0,0.00909999]
[1748245413951,0.77258157,109930.0,109920.0,0.36348983]
[1748245414152,0.86210308,109930.0,109920.0,0.36348983]
[1748245414560,0.2155887,109920.0,109910.0,0.016751]
[1748245414762,0.39161155,109920.0,109910.0,0.38024083]
[1748245415037,0.43721155,109920.0,109910.0,0.016751]
[1748245415298,0.42721155,109920.0,109910.0,0.38024083]
[1748245415428,0.46708069,109920.0,109910.0,0.38024083]
[1748245415628,0.46708069,109920.0,109910.0,0.38124083]
[1748245415823,0.46708069,109920.0,109910.0,0.38224083]
[1748245416038,0.46708069,109920.0,109910.0,0.38124083]
[1748245416236,0.47557837,109920.0,109910.0,0.38024083]
[1748245416552,0.47657837,109920.0,109910.0,0.38024083]
[1748245416758,0.47657837,109920.0,109910.0,0.016751]
[1748245417009,0.52657837,109920.0,109910.0,0.016751]
[1748245418340,0.52557837,109920.0,109910.0,0.016751]
[1748245418662,0.52657837,109920.0,109910.0,0.016751]
[1748245419059,0.52757837,109920.0,109910.0,0.016751]
[1748245419262,0.49640911,109920.0,109910.0,0.016751]
[1748245419474,0.49640911,109920.0,109910.0,0.38024083]
[1748245420261,0.80936911,109920.0,109910.0,0.38024083]
[1748245420404,0.79936911,109920.0,109910.0,0.38024083]
[1748245420604,0.50640911,109920.0,109910.0,0.38024083]
[1748245420844,0.84009547,109920.0,109910.0,0.38024083]
[1748245421562,0.84009547,109920.0,109910.0,0.35285286]
[1748245425542,0.69469547,109920.0,109910.0,0.35285286]
[1748245425700,0.80629547,109920.0,109910.0,0.35285286]
[1748245425900,0.81129547,109920.0,109910.0,0.69385286]
[1748245426112,0.81529547,109920.0,109910.0,0.69385286]
[1748245427027,0.84589547,109920.0,109910.0,0.69385286]
[1748245427871,0.84589547,109920.0,109910.0,0.67255157]
[1748245429043,0.93541698,109920.0,109910.0,0.67255157]
[1748245429243,0.83589547,109920.0,109910.0,0.341]
[1748245432828,0.83589547,109920.0,109910.0,0.70448983]
[1748245437412,0.83589547,109920.0,109910.0,0.36448983]
[1748245437614,0.50233547,109920.0,109910.0,0.36448983]
[1748245437818,0.64049547,109920.0,109910.0,0.36448983]
[1748245438016,0.48313547,109920.0,109910.0,0.39408983]
[1748245438247,0.78589547,109920.0,109910.0,0.39408983]
[1748245440137,0.73589547,109920.0,109910.0,0.39408983]
[1748245440362,0.78589547,109920.0,109910.0,0.39408983]
[1748245443684,0.48313547,109920.0,109910.0,0.39408983]
[1748245443880,0.73589547,109920.0,109910.0,0.42398983]
[1748245444082,0.78589547,109920.0,109910.0,0.73408983]
[1748245446822,0.48313547,109920.0,109910.0,0.73408983]
[1748245447021,0.78589547,109920.0,109910.0,0.73408983]
[1748245447792,0.48313547,109920.0,109910.0,0.73408983]
[1748245448218,0.78589547,109920.0,109910.0,0.73408983]
[1748245448425,0.51216181,109920.0,109910.0,0.70137801]
[1748245448659,0.81492181,109920.0,109910.0,0.70137801]
[1748245448946,0.51216181,109920.0,109910.0,0.70137801]
[1748245449157,0.78589547,109920.0,109910.0,0.70137801]
[1748245449670,0.48313547,109920.0,109910.0,0.70137801]
[1748245449900,0.78589547,109920.0,109910.0,0.70137801]
[1748245450970,0.78589547,109920.0,109910.0,0.3696]
[1748245451189,0.78589547,109920.0,109910.0,0.73308983]
[1748245451427,0.43313547,109920.0,109910.0,0.73308983]
[1748245451627,0.73589547,109920.0,109910.0,0.73308983]
[1748245452361,0.78589547,109920.0,109910.0,0.73308983]
[1748245455265,0.73589547,109920.0,109910.0,0.73308983]
[1748245455430,0.77679812,109920.0,109910.0,0.73308983]
[1748245455892,0.76952914,109920.0,109910.0,0.73308983]
[1748245456052,0.77862649,109920.0,109910.0,0.73308983]
[1748245456274,0.77135751,109920.0,109910.0,0.73308983]
[1748245456642,0.76408853,109920.0,109910.0,0.73308983]
[1748245457099,0.75681955,109920.0,109910.0,0.73308983]
[1748245457607,0.74955057,109920.0,109910.0,0.73308983]
[1748245457807,0.74228159,109920.0,109910.0,0.82871983]
[1748245458078,0.37952159,109920.0,109910.0,0.73308983]
[1748245458286,0.29485081,109920.0,109910.0,3.37849566]
[1748245458510,0.57213352,109920.0,109910.0,3.37849566]
[1748245458714,0.53306274,109920.0,109910.0,2.45331766]
[1748245458922,0.52906274,109920.0,109910.0,2.45331766]
[1748245459051,0.53268525,109920.0,109910.0,2.45331766]
[1748245459255,0.52868525,109920.0,109910.0,2.45331766]
[1748245459476,0.52141627,109920.0,109910.0,2.45331766]
[1748245459687,0.52341627,109920.0,109910.0,2.45431766]
[1748245459883,0.51614729,109920.0,109910.0,2.45431766]
[1748245460429,0.50887939,109920.0,109910.0,2.45431766]
[1748245460554,0.50161149,109920.0,109910.0,2.45431766]
[1748245460754,0.50161149,109920.0,109910.0,2.37967466]
[1748245460987,0.46321832,109920.0,109910.0,2.32940266]
[1748245461405,0.45595042,109920.0,109910.0,2.32940266]
[1748245461777,0.63790092,109920.0,109910.0,2.32940266]
[1748245461907,0.63063302,109920.0,109910.0,2.06773666]
[1748245462301,0.62336512,109920.0,109910.0,2.06773666]
[1748245462751,0.61609722,109920.0,109910.0,2.06773666]
[1748245462945,0.61609722,109920.0,109910.0,2.02426866]
[1748245463152,0.60882932,109920.0,109910.0,1.71752266]
[1748245463508,0.60156142,109920.0,109910.0,1.71752266]
[1748245463933,0.59429352,109920.0,109910.0,1.71752266]
[1748245464333,0.58702562,109920.0,109910.0,1.71752266]
[1748245464767,0.57975772,109920.0,109910.0,1.71752266]
[1748245464967,0.57248982,109920.0,109910.0,1.71752266]
[1748245465371,0.56522192,109920.0,109910.0,1.71752266]
[1748245465746,0.55795402,109920.0,109910.0,1.71752266]
[1748245466345,0.64023168,109920.0,109910.0,1.71752266]
[1748245466556,0.55068612,109920.0,109910.0,1.81315266]
[1748245466684,0.54341822,109920.0,109910.0,1.81315266]
[1748245467032,0.53615032,109920.0,109910.0,1.81315266]
[1748245467547,0.52888242,109920.0,109910.0,1.81315266]
[1748245467952,0.40487935,109920.0,109910.0,1.81315266]
[1748245468159,0.35945493,109920.0,109910.0,1.81315266]
[1748245468359,0.36128438,109920.0,109910.0,1.81315266]
[1748245468574,0.42024764,109920.0,109910.0,1.81315266]
[1748245468807,0.37482322,109920.0,109910.0,1.81315266]
[1748245469011,0.16617735,109920.0,109910.0,1.81315266]
[1748245469121,0.12075293,109920.0,109910.0,1.81315266]
[1748245469330,0.1001858,109920.0,109910.0,1.81315266]
[1748245469701,0.15501341,109920.0,109910.0,1.81315266]
[1748245469905,0.10958899,109920.0,109910.0,1.81315266]
[1748245470105,0.00909735,109920.0,109910.0,1.81315266]
[1748245470434,0.1819505,109920.0,109910.0,1.81155266]
[1748245470634,0.19104785,109920.0,109910.0,1.82065101]
[1748245470836,0.13835553,109920.0,109910.0,1.82065101]
[1748245470985,0.11444553,109920.0,109910.0,1.82065101]
[1748245471167,0.09927763,109920.0,109910.0,1.98424746]
[1748245471391,0.09927763,109920.0,109910.0,1.99334556]
[1748245471598,0.04658531,109920.0,109910.0,2.06613238]
[1748245472033,0.45909945,109930.0,109920.0,0.3966]
[1748245472331,0.40324501,109930.0,109920.0,3.25994466]
[1748245472532,0.35540969,109930.0,109920.0,3.25994466]
[1748245472731,0.30998527,109930.0,109920.0,3.25994466]
[1748245473045,0.30998527,109930.0,109920.0,2.96354466]
[1748245473237,0.43957208,109930.0,109920.0,2.75173466]
[1748245473447,0.39515645,109930.0,109920.0,2.75173466]
[1748245473646,0.35074082,109930.0,109920.0,2.75173466]
[1748245473855,0.25990956,109930.0,109920.0,2.75173466]
[1748245474052,0.21450956,109930.0,109920.0,2.75173466]
[1748245474216,0.18439449,109930.0,109920.0,2.75173466]
[1748245474423,0.09356323,109930.0,109920.0,2.75173466]
[1748245474776,0.8571574,109940.0,109920.0,3.11522449]
[1748245474911,0.13651832,109930.0,109920.0,0.76008983]
[1748245475118,0.85724795,109940.0,109920.0,3.06258783]
[1748245475325,0.13301447,109930.0,109920.0,0.76008983]
[1748245475528,0.81183232,109940.0,109920.0,2.90695683]
[1748245475737,0.81183232,109940.0,109930.0,1.627928]
[1748245475938,0.81183232,109940.0,109930.0,1.436786]
[1748245476175,0.86383232,109940.0,109930.0,2.10554666]
[1748245476452,0.89103232,109940.0,109930.0,2.03198766]
[1748245476664,0.89203232,109940.0,109930.0,1.38444966]
[1748245476892,0.89103232,109940.0,109930.0,1.33024966]
[1748245477352,0.89403232,109940.0,109930.0,1.33024966]
[1748245477707,0.80320106,109940.0,109930.0,1.33024966]
[1748245477904,0.75753055,109940.0,109930.0,1.33024966]
[1748245478101,0.89206289,109940.0,109930.0,1.33024966]
[1748245478435,0.83392758,109940.0,109930.0,0.60427]
[1748245478636,0.83392758,109940.0,109930.0,1.33124966]
[1748245478860,0.74538515,109940.0,109930.0,1.33124966]
[1748245479159,0.76931072,109940.0,109930.0,1.33124966]
[1748245479461,0.68715104,109940.0,109930.0,1.33124966]
[1748245479685,0.66680606,109940.0,109930.0,1.33124966]
[1748245479950,0.61851606,109940.0,109930.0,1.33124966]
[1748245480171,0.58179588,109940.0,109930.0,1.33124966]
[1748245480393,0.5363762,109940.0,109930.0,1.33124966]
[1748245480600,0.5657762,109940.0,109930.0,1.33124966]
[1748245481717,0.52035652,109940.0,109930.0,1.33124966]
[1748245481923,0.47493684,109940.0,109930.0,1.33124966]
[1748245482061,0.46849684,109940.0,109930.0,1.33124966]
[1748245482258,0.42307716,109940.0,109930.0,1.33124966]
[1748245482602,0.43307716,109940.0,109930.0,0.96775983]
[1748245482809,0.44761801,109940.0,109930.0,0.92863083]
[1748245483319,0.46214,109940.0,109930.0,0.92863083]
[1748245483712,0.46214,109940.0,109930.0,0.70448983]
[1748245483867,0.45214,109940.0,109930.0,0.70448983]
[1748245484461,0.50834448,109940.0,109930.0,0.70448983]
[1748245488620,0.50834448,109940.0,109930.0,0.68319201]
[1748245488839,0.49382249,109940.0,109930.0,0.68319201]
[1748245490439,0.49382249,109940.0,109930.0,0.67728653]
[1748245491601,0.44382249,109940.0,109930.0,0.30521987]
[1748245491759,0.44382249,109940.0,109930.0,0.64940314]
[1748245491967,0.44382249,109940.0,109930.0,0.64054436]
[1748245492747,0.44382249,109940.0,109930.0,0.60783484]
[1748245492960,0.533344,109940.0,109930.0,0.60783484]
[1748245493632,0.44382249,109940.0,109930.0,0.60783484]
[1748245494045,0.43512299,109940.0,109930.0,0.60783484]
[1748245495252,0.47687252,109940.0,109930.0,0.60783484]
[1748245496214,0.47687252,109940.0,109930.0,0.58045007]
[1748245496448,0.47687252,109940.0,109930.0,0.21696024]
[1748245496649,0.56442091,109940.0,109930.0,0.39644198]
[1748245496851,0.56442091,109940.0,109930.0,0.36448983]
[1748245497662,0.45517395,109940.0,109930.0,0.36448983]
[1748245497844,0.60057395,109940.0,109930.0,0.36448983]
[1748245499183,0.60057395,109940.0,109930.0,0.37833672]
[1748245500454,0.60057395,109940.0,109930.0,0.74182655]
[1748245500455,0.45517395,109940.0,109930.0,0.74182655]
[1748245500657,0.45857395,109940.0,109930.0,1.08182655]
[1748245500860,0.44215261,109950.0,109940.0,0.34]
[1748245501068,0.65260878,109950.0,109940.0,1.09917966]
[1748245501238,0.50514868,109950.0,109940.0,1.46266949]
[1748245501450,0.47963807,109950.0,109940.0,1.49496949]
[1748245501662,0.57362632,109950.0,109940.0,1.49496949]
[1748245501885,0.60267808,109950.0,109940.0,1.27528666]
[1748245502048,0.63457808,109950.0,109940.0,1.06697966]
[1748245502259,0.67287808,109950.0,109940.0,1.06797966]
[1748245502426,0.67587808,109950.0,109940.0,1.06797966]
[1748245502650,0.67587808,109950.0,109940.0,0.001]
[1748245502832,0.76539959,109950.0,109940.0,1.06797966]
[1748245503038,0.67587808,109950.0,109940.0,1.06797966]
[1748245503482,0.67587808,109950.0,109940.0,0.72797966]
[1748245506734,0.70137565,109950.0,109940.0,0.72797966]
[1748245506980,0.24623395,109930.0,109910.0,0.0323]
[1748245507213,0.20016317,109910.0,109900.0,0.0334]
[1748245507425,0.20016317,109910.0,109900.0,0.76037966]
[1748245507426,0.34556317,109910.0,109900.0,0.76037966]
[1748245507632,0.34556317,109910.0,109900.0,0.76047021]
[1748245508053,0.34556317,109910.0,109900.0,1.06907021]
[1748245508269,0.3690664,109910.0,109900.0,0.72907021]
[1748245508478,0.50531259,109910.0,109900.0,0.00209055]
[1748245508683,0.55454268,109910.0,109900.0,0.72907021]
[1748245508889,0.52904958,109910.0,109900.0,0.73207021]
[1748245509059,0.52904958,109910.0,109900.0,1.07207021]
[1748245509323,0.47904958,109910.0,109900.0,1.07207021]
[1748245509534,0.52904958,109910.0,109900.0,1.07207021]
[1748245509755,0.52904958,109910.0,109900.0,1.06907021]
[1748245509981,0.53004958,109910.0,109900.0,1.07307021]
[1748245510437,0.52904958,109910.0,109900.0,1.07107021]
[1748245510671,0.52904958,109910.0,109900.0,1.07207021]
[1748245510897,0.55452711,109910.0,109900.0,1.07207021]
[1748245511312,0.56902809,109910.0,109900.0,1.07207021]
[1748245512107,0.56902809,109910.0,109900.0,0.34509055]
[1748245512431,0.53762809,109910.0,109900.0,1.07207021]
[1748245516721,0.56762809,109910.0,109900.0,1.07207021]
[1748245518830,0.25666029,109930.0,109910.0,0.73428983]
[1748245519067,0.40206029,109930.0,109920.0,0.73428983]
[1748245519255,0.18193128,109940.0,109930.0,0.34]
[1748245519436,0.49937128,109940.0,109930.0,0.373]
[1748245519633,0.54477128,109940.0,109930.0,0.373]
[1748245519834,0.39937128,109940.0,109930.0,0.373]
[1748245520008,0.39937128,109940.0,109930.0,1.06697966]
[1748245520468,0.40785144,109940.0,109930.0,1.06697966]
[1748245521018,0.41285144,109940.0,109930.0,1.06797966]
[1748245521696,0.41485144,109940.0,109930.0,1.06797966]
[1748245524431,0.4455492,109940.0,109930.0,1.06797966]
[1748245524858,0.4455492,109940.0,109930.0,0.70448983]
[1748245528374,0.5909492,109940.0,109930.0,0.70448983]
[1748245529467,0.61639959,109940.0,109930.0,0.70448983]
[1748245530785,0.70594515,109940.0,109930.0,0.70448983]
[1748245531004,0.68049476,109940.0,109930.0,0.36448983]
[1748245532849,0.68049476,109940.0,109930.0,0.70448983]
[1748245533053,0.68049476,109940.0,109930.0,0.341]
[1748245533259,0.68049476,109940.0,109930.0,0.70448983]
[1748245536119,0.36305476,109940.0,109930.0,0.70448983]
[1748245536331,0.36305476,109940.0,109930.0,0.73648983]
[1748245536753,0.36305476,109940.0,109930.0,0.76898983]
[1748245536995,0.42464081,109940.0,109930.0,0.70448983]
[1748245537209,0.39455476,109940.0,109930.0,0.70448983]
[1748245537829,0.40909561,109940.0,109930.0,0.70448983]
[1748245538255,0.40909561,109940.0,109930.0,0.341]
[1748245538462,0.40909561,109940.0,109930.0,0.70448983]
[1748245540634,0.40909561,109940.0,109930.0,0.71809364]
[1748245540850,0.50949221,109940.0,109930.0,0.71809364]
[1748245541068,0.53495509,109940.0,109930.0,0.71809364]
[1748245541736,0.44543358,109940.0,109930.0,0.71809364]
[1748245542201,0.43455849,109940.0,109930.0,0.71809364]
[1748245543039,0.43455849,109940.0,109930.0,0.70448983]
[1748245543911,0.54845849,109940.0,109930.0,0.70448983]
[1748245544126,0.54845849,109940.0,109930.0,0.73668983]
[1748245544347,0.54845849,109940.0,109930.0,0.71539244]
[1748245547689,0.54845849,109940.0,109930.0,1.12669244]
[1748245550929,0.54845849,109940.0,109930.0,1.09449244]
[1748245553421,0.63798,109940.0,109930.0,1.09449244]
[1748245553602,0.54845849,109940.0,109930.0,0.68319244]
[1748245554521,0.54845849,109940.0,109930.0,0.67433443]
[1748245561141,0.54845849,109940.0,109930.0,1.11643443]
[1748245563093,0.54845849,109940.0,109930.0,0.80558983]
[1748245563717,0.54845849,109940.0,109930.0,0.77478983]
[1748245564338,0.56299353,109940.0,109930.0,0.77478983]
[1748245565065,0.56299353,109940.0,109930.0,1.11478983]
[1748245565902,0.56299353,109940.0,109930.0,1.09349241]